fUST/lending_fUST_20250404
["ID","MTS","AMOUNT","RATE_DAILY","PERIOD"]
[357093255,1743721837431,-151.0,0.00021107,2]
[357093256,1743721837441,-289.722232,0.00021107,2]
[357093257,1743721837451,-151.0,0.00021107,2]
[357093258,1743721837461,-151.0,0.00021107,2]
[357093259,1743721837471,-152.590514,0.00021107,2]
[357093260,1743721837480,-152.590514,0.00021107,2]
[357093261,1743721837490,-238.922553,0.00021107,2]
[357093262,1743721837499,-238.922553,0.00021107,2]
[357093263,1743721837509,-151.0,0.00021107,2]
[357093264,1743721837518,-151.0,0.00021107,2]
[357093265,1743721837527,-151.0,0.00021107,2]
[357093266,1743721837536,-300.662975,0.00021107,2]
[357093267,1743721837547,-300.662975,0.00021107,2]
[357093268,1743721837556,-1180.775934,0.00021107,2]
[357093269,1743721837567,-1180.775934,0.00021107,2]
[357093270,1743721837577,-12500.0,0.00021107,2]
[357093271,1743721837587,-3000.0,0.0002111,2]
[357093272,1743721837596,-12500.0,0.00021116,2]
[357093273,1743721837607,-3000.0,0.0002112,2]
[357093274,1743721837616,-12500.0,0.00021125,2]
[357093275,1743721837625,-3000.0,0.0002113,2]
[357093276,1743721837634,-12500.0,0.00021134,2]
[357093277,1743721837644,-3000.0,0.0002114,2]
[357093278,1743721837653,-12500.0,0.00021143,2]
[357093279,1743721837663,-3000.0,0.0002115,2]
[357093280,1743721837672,-12500.0,0.00021151,2]
[357093281,1743721837682,-3000.0,0.0002116,2]
[357093282,1743721837692,-480.0,0.0002116,2]
[357093283,1743721837702,-480.0,0.0002116,2]
[357093284,1743721837716,-151.0,0.0002116,2]
[357093285,1743721837726,-151.0,0.0002116,2]
[357093286,1743721837736,-151.0,0.0002116,2]
[357093287,1743721837746,-151.0,0.0002116,2]
[357093288,1743721837757,-152.590514,0.0002116,2]
[357093289,1743721837767,-152.590514,0.0002116,2]
[357093290,1743721837778,-238.922553,0.0002116,2]
[357093291,1743721837788,-238.922553,0.0002116,2]
[357093292,1743721837800,-151.0,0.0002116,2]
[357093293,1743721837809,-151.0,0.0002116,2]
[357093294,1743721837819,-151.0,0.0002116,2]
[357093295,1743721837829,-300.662975,0.0002116,2]
[357093296,1743721837838,-300.662975,0.0002116,2]
[357093297,1743721837848,-1180.775934,0.0002116,2]
[357093298,1743721837857,-1180.775934,0.0002116,2]
[357093299,1743721837867,-12500.0,0.0002116,2]
[357093300,1743721837876,-500.0,0.00021161,2]
[357093301,1743721837886,-500.0,0.00021162,2]
[357093302,1743721837896,-2755.5647625,0.00021169,2]
[357093303,1743721837905,-12034.17226782,0.00021169,2]
[357093304,1743721837918,-387.8124303,0.00021169,2]
[357093305,1743721837930,-78.01530188,0.00021169,2]
[357093306,1743721837939,-340.86469812,0.00021169,2]
[357093322,1743721838453,-28962.38215649,0.00019329,2]
[357093335,1743721840848,-1157.34769832,0.00019329,2]
[357093336,1743721840861,-258.22,0.00019329,2]
[357093337,1743721840963,-6655.97958307,0.00019329,2]
[357093346,1743721843571,-10857.65784964,0.00019329,2]
[357093423,1743722850126,-1194.8542458,0.00015728,2]
[357093424,1743722850149,-189.84567996,0.00015769,2]
[357093425,1743722850171,-168.27919354,0.00015869,2]
[357093594,1743723043025,-513.74298352,0.00015869,2]
[357093601,1743723043831,-29.12268796,0.00015869,2]
[357093609,1743723044235,-401.51830598,0.00015869,2]
[357093610,1743723044262,-29.12268796,0.00015978,2]
[357093617,1743723045469,-270.87731204,0.00015978,2]
[357093623,1743723047431,-169.71856065,0.00015978,2]
[357093624,1743723086834,645.51,0.00010959,2]
[357093626,1743723097499,322.74,0.00010959,2]
[357093641,1743724029129,-166.593297,0.00013699,2]
[357093642,1743724029153,-300.0,0.00015045,2]
[357093643,1743724029178,-131.71177327,0.00015046,2]
[357093735,1743724237733,-300.0,0.00015044,2]
[357093736,1743724237743,-500.0,0.00015045,2]
[357093738,1743724237752,-380.94624783,0.00015045,2]
[357093740,1743724237762,-500.0,0.00015045,2]
[357093742,1743724237771,-567.08,0.00015045,2]
[357093744,1743724237781,-500.0,0.00015045,2]
[357093746,1743724237792,-500.0,0.00015045,2]
[357093747,1743724237801,-500.0,0.00015045,2]
[357093749,1743724237811,-500.0,0.00015045,2]
[357093751,1743724237821,-500.0,0.00015045,2]
[357093752,1743724237830,-250.03168857,0.00015045,2]
[357093754,1743724237844,-249.96831143,0.00015045,2]
[357093756,1743724237853,-500.0,0.00015045,2]
[357093758,1743724237863,-500.0,0.00015045,2]
[357093760,1743724237873,-500.0,0.00015045,2]
[357093763,1743724237882,-500.0,0.00015045,2]
[357093765,1743724237891,-500.0,0.00015046,2]
[357093766,1743724237900,-500.0,0.00015046,2]
[357093767,1743724237910,-500.0,0.00015046,2]
[357093768,1743724237921,-500.0,0.00015046,2]
[357093769,1743724237931,-500.0,0.00015046,2]
[357093770,1743724237940,-500.0,0.00015046,2]
[357093771,1743724237950,-647.07470509,0.00015046,2]
[357093772,1743724237959,-500.0,0.00015046,2]
[357093773,1743724237970,-500.0,0.00015046,2]
[357093774,1743724237979,-500.0,0.00015046,2]
[357093775,1743724237989,-500.0,0.00015046,2]
[357093776,1743724237998,-500.0,0.00015046,2]
[357093777,1743724238008,-556.24689307,0.00015046,2]
[357093778,1743724238017,-508.39695995,0.00015046,2]
[357093779,1743724238173,-1025.30545403,0.00015046,2]
[357093780,1743724238184,-539.91286805,0.00015046,2]
[357093781,1743724238194,-503.46202755,0.00015046,2]
[357093782,1743724238206,-510.95560148,0.00015046,2]
[357093783,1743724238215,-504.76903793,0.00015046,2]
[357093784,1743724238225,-513.74298352,0.00015046,2]
[357093785,1743724238235,-509.65747206,0.00015046,2]
[357093786,1743724238244,-500.0,0.00015046,2]
[357093787,1743724238254,-500.0,0.00015046,2]
[357093788,1743724238263,-503.82664465,0.00015046,2]
[357093789,1743724238273,-510.42541651,0.00015046,2]
[357093790,1743724238282,-521.68885476,0.00015046,2]
[357093791,1743724238292,-515.54916916,0.00015046,2]
[357093792,1743724238301,-508.69387389,0.00015046,2]
[357093793,1743724238310,-568.32,0.00015046,2]
[357093794,1743724238320,-501.01653094,0.00015046,2]
[357093795,1743724238329,-546.66654184,0.00015046,2]
[357093796,1743724238340,-508.61216478,0.00015046,2]
[357093797,1743724238349,-506.86542952,0.00015046,2]
[357093798,1743724238360,-505.9856092,0.00015046,2]
[357093799,1743724238371,-500.0,0.00015046,2]
[357093800,1743724238380,-12.18709429,0.00015046,2]
[357093833,1743724242994,-500.0,0.00015045,2]
[357093834,1743724243004,-167.30171625,0.00015046,2]
[357093835,1743724243013,-125.33828375,0.00015046,2]
[357093847,1743724245908,-520.32171625,0.00015046,2]
[357093848,1743724245918,-201.98959294,0.00015046,2]
[357093849,1743724284406,363.76,0.00010959,2]
[357093858,1743724996151,177.848265,0.00014044,10]
[357093859,1743725345157,-166.593297,0.00013699,2]
[357093860,1743725345181,-325.6368789,0.00013745,2]
[357093861,1743725345202,-186.53187125,0.00013945,2]
[357093862,1743725345223,-720.95011,0.0001402,2]
[357093863,1743725345247,-300.0,0.00014042,2]
[357093864,1743725345269,-500.0,0.00014043,2]
[357093865,1743725345291,-500.0,0.00014043,2]
[357093866,1743725345312,-500.0,0.00014043,2]
[357093867,1743725345335,-628.76,0.00014043,2]
[357093868,1743725345362,-500.0,0.00014043,2]
[357093869,1743725345386,-500.0,0.00014043,2]
[357093870,1743725345408,-623.93,0.00014043,2]
[357093871,1743725345433,-500.0,0.00014043,2]
[357093872,1743725345459,-500.0,0.00014043,2]
[357093873,1743725345484,-500.0,0.00014043,2]
[357093874,1743725345507,-500.0,0.00014043,2]
[357093875,1743725345531,-500.0,0.00014043,2]
[357093876,1743725345555,-500.0,0.00014043,2]
[357093877,1743725345576,-500.0,0.00014043,2]
[357093878,1743725345602,-500.0,0.00014043,2]
[357093879,1743725345625,-500.0,0.00014043,2]
[357093880,1743725345650,-830.26,0.00014043,2]
[357093881,1743725345673,-500.0,0.00014043,2]
[357093882,1743725345697,-500.0,0.00014043,2]
[357093883,1743725345720,-500.0,0.00014043,2]
[357093884,1743725345747,-500.0,0.00014043,2]
[357093885,1743725345771,-500.0,0.00014043,2]
[357093886,1743725345797,-788.97,0.00014043,2]
[357093887,1743725345821,-500.0,0.00014043,2]
[357093888,1743725345843,-581.35602823,0.00014043,2]
[357093889,1743725345865,-500.0,0.00014043,2]
[357093890,1743725345890,-500.0,0.00014043,2]
[357093891,1743725345912,-307.23703151,0.00014043,2]
[357093892,1743725345934,-500.0,0.00014043,2]
[357093893,1743725345958,-565.48,0.00014043,2]
[357093894,1743725345980,-511.66507794,0.00014043,2]
[357093895,1743725346003,-496.76,0.00014043,2]
[357093896,1743725346025,-500.0,0.00014043,2]
[357093897,1743725346046,-154.81758223,0.00014043,2]
[357093898,1743725346071,-484.61302271,0.00014043,2]
[357093899,1743725346094,-500.0,0.00014043,2]
[357093900,1743725346118,-500.0,0.00014043,2]
[357093901,1743725346144,-500.0,0.00014043,2]
[357093902,1743725346168,-500.0,0.00014043,2]
[357093903,1743725346190,-500.0,0.00014043,2]
[357093904,1743725346211,-500.0,0.00014043,2]
[357093905,1743725346237,-500.0,0.00014043,2]
[357093906,1743725346260,-500.0,0.00014043,2]
[357093907,1743725346284,-543.45,0.00014043,2]
[357093908,1743725346307,-500.0,0.00014043,2]
[357093909,1743725346331,-500.0,0.00014043,2]
[357093910,1743725346355,-500.0,0.00014043,2]
[357093911,1743725346377,-500.0,0.00014043,2]
[357093912,1743725346401,-50000.0,0.00014043,2]
[357093913,1743725346426,-500.0,0.00014044,2]
[357093914,1743725346447,-350.80202729,0.00014044,2]
[357093915,1743725346472,-500.0,0.00014044,2]
[357093916,1743725346500,-528.39,0.00014044,2]
[357093917,1743725346521,-500.0,0.00014044,2]
[357093918,1743725346543,-500.0,0.00014044,2]
[357093919,1743725346564,-562.63040706,0.00014044,2]
[357093920,1743725346585,-504.47148551,0.00014044,2]
[357093921,1743725346606,-508.84346544,0.00014044,2]
[357093922,1743725346627,-500.0,0.00014044,2]
[357093923,1743725346648,-596.39938883,0.00014044,2]
[357093924,1743725346669,-515.9139936,0.00014044,2]
[357093925,1743725346690,-506.80774565,0.00014044,2]
[357093926,1743725346711,-599.72567381,0.00014044,2]
[357093927,1743725346736,-501.9742945,0.00014044,2]
[357093928,1743725346758,-502.49742003,0.00014044,2]
[357093929,1743725346781,-532.64,0.00014044,2]
[357093930,1743725346803,-518.29193319,0.00014044,2]
[357093931,1743725346828,-500.0,0.00014044,2]
[357093932,1743725346851,-525.67421831,0.00014044,2]
[357093933,1743725346872,-501.83617431,0.00014044,2]
[357093934,1743725346894,-500.0,0.00014044,2]
[357093935,1743725346917,-502.80900431,0.00014044,2]
[357093936,1743725346940,-500.0,0.00014044,2]
[357093937,1743725346963,-539.94,0.00014044,2]
[357093938,1743725346986,-570.88,0.00014044,2]
[357093939,1743725347008,-500.0,0.00014044,2]
[357093940,1743725347028,-500.0,0.00014044,2]
[357093941,1743725347048,-575.50477616,0.00014044,2]
[357093942,1743725347069,-508.81205845,0.00014044,2]
[357093943,1743725347090,-506.08131021,0.00014044,2]
[357093944,1743725347112,-368.73318357,0.00014044,2]
[357093945,1743725358089,-500.0,0.00014043,2]
[357093946,1743725358113,-500.0,0.00014043,2]
[357093947,1743725358139,-141.23261013,0.00014044,2]
[357093948,1743725358163,-93.97743465,0.00014044,2]
[357093983,1743725432320,-2568.09758729,0.00013944,2]
[357093984,1743725432333,-300.0,0.00014042,2]
[357093985,1743725432343,-530.02718994,0.00014043,2]
[357093986,1743725432353,-500.0,0.00014043,2]
[357093987,1743725432363,-500.0,0.00014043,2]
[357093988,1743725432372,-500.0,0.00014043,2]
[357093989,1743725432381,-500.0,0.00014043,2]
[357093990,1743725432391,-500.0,0.00014043,2]
[357093991,1743725432401,-500.0,0.00014043,2]
[357093992,1743725432410,-500.0,0.00014043,2]
[357093993,1743725432420,-500.0,0.00014043,2]
[357093994,1743725432430,-432.63654859,0.00014044,2]
[357093995,1743725432440,-500.0,0.00014044,2]
[357093996,1743725432450,-511.49704146,0.00014044,2]
[357093997,1743725432459,-513.80914547,0.00014044,2]
[357093998,1743725432469,-500.0,0.00014044,2]
[357093999,1743725432478,-506.25225122,0.00014044,2]
[357094000,1743725432487,-516.00820489,0.00014044,2]
[357094001,1743725432496,-257.51771328,0.00014044,2]
[357094002,1743725432506,-500.0,0.00014044,2]
[357094003,1743725432515,-539.7165531,0.00014044,2]
[357094004,1743725432525,-511.19137233,0.00014044,2]
[357094005,1743725432535,-500.0,0.00014044,2]
[357094006,1743725432544,-500.0,0.00014044,2]
[357094007,1743725432553,-508.66173035,0.00014044,2]
[357094008,1743725432563,-500.0,0.00014044,2]
[357094009,1743725432573,-517.44664167,0.00014044,2]
[357094010,1743725432582,-507.96480263,0.00014044,2]
[357094011,1743725432592,-502.20989369,0.00014044,2]
[357094012,1743725432601,-502.95480296,0.00014044,2]
[357094013,1743725432611,-507.38374568,0.00014044,2]
[357094014,1743725432622,-508.47547911,0.00014044,2]
[357094015,1743725432631,-508.2737581,0.00014044,2]
[357094016,1743725432641,-540.11,0.00014044,2]
[357094017,1743725432650,-500.0,0.00014044,2]
[357094018,1743725432659,-516.93841334,0.00014044,2]
[357094019,1743725432669,-515.4499731,0.00014044,2]
[357094020,1743725432678,-500.0,0.00014044,2]
[357094021,1743725432688,-500.0,0.00014044,2]
[357094022,1743725432697,-500.0,0.00014044,2]
[357094023,1743725432707,-507.33394106,0.00014044,2]
[357094024,1743725432717,-510.60006171,0.00014044,2]
[357094025,1743725432727,-580.85621354,0.00014044,2]
[357094026,1743725432737,-500.0,0.00014044,2]
[357094027,1743725432747,-500.0,0.00014044,2]
[357094028,1743725432758,-500.0,0.00014044,2]
[357094029,1743725432768,-524.87828429,0.00014044,2]
[357094030,1743725432777,-501.7016827,0.00014044,2]
[357094031,1743725432787,-510.42305418,0.00014044,2]
[357094032,1743725432799,-585.01,0.00014044,2]
[357094033,1743725432809,-500.0,0.00014044,2]
[357094034,1743725432819,-500.0,0.00014044,2]
[357094035,1743725432828,-500.0,0.00014044,2]
[357094036,1743725432839,-500.0,0.00014044,2]
[357094037,1743725432849,-500.0,0.00014044,2]
[357094038,1743725432858,-500.0,0.00014044,2]
[357094039,1743725432868,-239.83,0.00014044,2]
[357094040,1743725432878,-500.0,0.00014044,2]
[357094041,1743725432887,-502.52906685,0.00014044,2]
[357094042,1743725432896,-500.0,0.00014044,2]
[357094043,1743725432906,-500.0,0.00014044,2]
[357094044,1743725432915,-6178.50077498,0.00014044,2]
[357094045,1743725432927,-11989.98922502,0.00014044,2]
[357094046,1743725432936,-744.12,0.00014044,2]
[357094047,1743725432946,-500.0,0.00014044,2]
[357094048,1743725432955,-500.0,0.00014044,2]
[357094049,1743725432965,-309.55,0.00014044,2]
[357094050,1743725432974,-502.92634945,0.00014044,2]
[357094051,1743725432984,-500.0,0.00014044,2]
[357094052,1743725432993,-500.0,0.00014044,2]
[357094053,1743725433002,-500.0,0.00014044,2]
[357094054,1743725433011,-500.3034973,0.00014044,2]
[357094055,1743725433020,-516.43,0.00014044,2]
[357094056,1743725433030,-500.0,0.00014044,2]
[357094057,1743725433039,-521.54580702,0.00014044,2]
[357094058,1743725433048,-500.0,0.00014044,2]
[357094059,1743725433058,-500.0,0.00014044,2]
[357094060,1743725433068,-500.0,0.00014044,2]
[357094061,1743725433077,-500.0,0.00014044,2]
[357094062,1743725433086,-500.0,0.00014044,2]
[357094063,1743725433096,-500.0,0.00014044,2]
[357094064,1743725433105,-500.0,0.00014044,2]
[357094065,1743725433114,-500.0,0.00014044,2]
[357094066,1743725433123,-436.17916408,0.00014044,2]
[357094067,1743725433133,-504.32029485,0.00014044,2]
[357094068,1743725433142,-500.0,0.00014044,2]
[357094069,1743725433152,-391.26790726,0.00014044,2]
[357094070,1743725433161,-500.0,0.00014044,2]
[357094071,1743725433170,-526.51,0.00014044,2]
[357094072,1743725433179,-366.36,0.00014044,2]
[357094073,1743725433188,-24900.0,0.00014045,2]
[357094074,1743725433197,-500.0,0.00014317,2]
[357094075,1743725433206,-500.0,0.00014317,2]
[357094076,1743725433216,-500.0,0.00014317,2]
[357094077,1743725433226,-500.0,0.00014317,2]
[357094078,1743725433235,-500.0,0.00014317,2]
[357094079,1743725433244,-345.1,0.00014317,2]
[357094080,1743725433254,-500.0,0.00014317,2]
[357094081,1743725433275,-500.0,0.00014317,2]
[357094082,1743725433286,-830.26,0.00014317,2]
[357094083,1743725433297,-500.0,0.00014317,2]
[357094084,1743725433308,-500.0,0.00014317,2]
[357094085,1743725433318,-500.0,0.00014317,2]
[357094086,1743725433328,-237.06,0.00014317,2]
[357094087,1743725433338,-788.97,0.00014317,2]
[357094088,1743725433348,-345.4,0.00014317,2]
[357094089,1743725433358,-500.0,0.00014317,2]
[357094090,1743725433368,-500.0,0.00014317,2]
[357094091,1743725433378,-565.48,0.00014317,2]
[357094092,1743725433387,-500.0,0.00014317,2]
[357094093,1743725433398,-500.0,0.00014317,2]
[357094094,1743725433407,-500.0,0.00014317,2]
[357094095,1743725433418,-543.45,0.00014317,2]
[357094096,1743725433428,-449.59,0.00014317,2]
[357094097,1743725433438,-500.0,0.00014317,2]
[357094098,1743725433447,-500.0,0.00014317,2]
[357094099,1743725433457,-643.53,0.00014317,2]
[357094100,1743725433467,-500.0,0.00014317,2]
[357094101,1743725433477,-219.84,0.00014317,2]
[357094102,1743725433487,-500.0,0.00014317,2]
[357094103,1743725433497,-500.0,0.00014317,2]
[357094104,1743725433507,-500.0,0.00014317,2]
[357094105,1743725433517,-487.28,0.00014317,2]
[357094106,1743725433528,-500.0,0.00014317,2]
[357094107,1743725433538,-220.39,0.00014317,2]
[357094108,1743725433548,-500.0,0.00014317,2]
[357094109,1743725433559,-500.0,0.00014318,2]
[357094110,1743725433569,-513.26,0.00014318,2]
[357094111,1743725433579,-295.78,0.00014318,2]
[357094112,1743725433589,-427.08,0.00014318,2]
[357094113,1743725433599,-410.73,0.00014318,2]
[357094114,1743725433609,-281.92,0.00014318,2]
[357094115,1743725433620,-376.48,0.00014318,2]
[357094116,1743725433629,-500.0,0.00014318,2]
[357094117,1743725433640,-500.0,0.00014318,2]
[357094118,1743725433651,-500.0,0.00014318,2]
[357094119,1743725433661,-500.0,0.00014318,2]
[357094120,1743725433671,-585.01,0.00014318,2]
[357094121,1743725433681,-500.0,0.00014318,2]
[357094122,1743725433693,-500.0,0.00014318,2]
[357094123,1743725433703,-500.0,0.00014318,2]
[357094124,1743725433714,-500.0,0.00014318,2]
[357094125,1743725433724,-500.0,0.00014318,2]
[357094126,1743725433734,-18168.49,0.00014318,2]
[357094127,1743725433744,-744.12,0.00014318,2]
[357094128,1743725433754,-500.0,0.00014318,2]
[357094129,1743725433768,-500.0,0.00014318,2]
[357094130,1743725433778,-500.0,0.00014318,2]
[357094131,1743725433789,-232.05,0.00014318,2]
[357094132,1743725433800,-500.0,0.00014318,2]
[357094133,1743725433810,-388.21,0.00014318,2]
[357094134,1743725433820,-500.0,0.00014318,2]
[357094135,1743725433830,-190.92,0.00014318,2]
[357094136,1743725433842,-500.0,0.00014318,2]
[357094137,1743725433852,-500.0,0.00014591,2]
[357094138,1743725433863,-500.0,0.00014591,2]
[357094139,1743725433874,-500.0,0.00014591,2]
[357094140,1743725433884,-500.0,0.00014591,2]
[357094141,1743725433894,-500.0,0.00014591,2]
[357094142,1743725433904,-191.57634444,0.00014591,2]
[357094143,1743725433915,-830.26,0.00014591,2]
[357094144,1743725433925,-500.0,0.00014591,2]
[357094145,1743725433935,-500.0,0.00014591,2]
[357094146,1743725433944,-500.0,0.00014591,2]
[357094147,1743725433954,-788.97,0.00014591,2]
[357094148,1743725433964,-500.0,0.00014591,2]
[357094149,1743725433974,-500.0,0.00014591,2]
[357094150,1743725433983,-565.48,0.00014591,2]
[357094151,1743725433994,-457.55,0.00014591,2]
[357094152,1743725434003,-500.0,0.00014591,2]
[357094153,1743725434014,-500.0,0.00014591,2]
[357094154,1743725434024,-543.45,0.00014591,2]
[357094155,1743725434034,-500.0,0.00014591,2]
[357094156,1743725434044,-500.0,0.00014591,2]
[357094157,1743725434054,-397.88,0.00014591,2]
[357094158,1743725434064,-500.0,0.00014591,2]
[357094159,1743725434074,-500.0,0.00014591,2]
[357094160,1743725434084,-500.0,0.00014591,2]
[357094161,1743725434095,-500.0,0.00014591,2]
[357094162,1743725434105,-319.42,0.00014591,2]
[357094163,1743725434116,-500.0,0.00014592,2]
[357094164,1743725434126,-500.0,0.00014592,2]
[357094165,1743725434137,-205.87,0.00014592,2]
[357094166,1743725434146,-500.0,0.00014592,2]
[357094167,1743725434156,-590.84,0.00014592,2]
[357094168,1743725434167,-585.01,0.00014592,2]
[357094169,1743725434177,-365.71,0.00014592,2]
[357094170,1743725434186,-351.63,0.00014592,2]
[357094171,1743725434196,-500.0,0.00014592,2]
[357094172,1743725434206,-500.0,0.00014592,2]
[357094173,1743725434216,-500.0,0.00014592,2]
[357094174,1743725434225,-18168.49,0.00014592,2]
[357094175,1743725434235,-744.12,0.00014592,2]
[357094176,1743725434245,-500.0,0.00014592,2]
[357094177,1743725434255,-500.0,0.00014592,2]
[357094178,1743725434265,-500.0,0.00014592,2]
[357094179,1743725434275,-500.0,0.00014592,2]
[357094180,1743725434284,-500.0,0.00014592,2]
[357094181,1743725434294,-500.0,0.00014592,2]
[357094182,1743725434304,-500.0,0.00014865,2]
[357094183,1743725434314,-500.0,0.00014865,2]
[357094184,1743725434325,-500.0,0.00014865,2]
[357094185,1743725434334,-500.0,0.00014865,2]
[357094186,1743725434345,-500.0,0.00014865,2]
[357094187,1743725434359,-830.26,0.00014865,2]
[357094188,1743725434369,-500.0,0.00014865,2]
[357094189,1743725434378,-500.0,0.00014865,2]
[357094190,1743725434388,-788.97,0.00014865,2]
[357094191,1743725434398,-500.0,0.00014865,2]
[357094192,1743725434411,-500.0,0.00014865,2]
[357094193,1743725434421,-565.48,0.00014865,2]
[357094194,1743725434431,-500.0,0.00014865,2]
[357094195,1743725434441,-500.0,0.00014865,2]
[357094196,1743725434451,-543.45,0.00014865,2]
[357094197,1743725434461,-500.0,0.00014865,2]
[357094198,1743725434471,-488.94,0.00014865,2]
[357094199,1743725434480,-500.0,0.00014865,2]
[357094200,1743725434490,-500.0,0.00014865,2]
[357094201,1743725434500,-506.2,0.00014865,2]
[357094202,1743725434509,-500.0,0.00014865,2]
[357094203,1743725434519,-260.35,0.00014866,2]
[357094204,1743725434528,-522.16,0.00014866,2]
[357094205,1743725434538,-267.08,0.00014866,2]
[357094206,1743725434548,-585.01,0.00014866,2]
[357094207,1743725434557,-175.66,0.00014866,2]
[357094208,1743725434567,-500.0,0.00014866,2]
[357094209,1743725434577,-500.0,0.00014866,2]
[357094210,1743725434587,-7238.27721198,0.00014866,2]
[357094234,1743725437913,-1299.0,0.00014866,2]
[357094255,1743725443110,-174.0,0.00014043,2]
[357094256,1743725443120,-500.0,0.00014044,2]
[357094257,1743725443130,-500.0,0.0001459,2]
[357094258,1743725443140,-514.49388746,0.0001459,2]
[357094259,1743725443149,-744.12,0.00014866,2]
[357094260,1743725443158,-500.0,0.00014866,2]
[357094261,1743725443168,-151.0,0.00014866,2]
[357094262,1743725443177,-491.74678603,0.00014866,2]
[357094267,1743725446082,-3141.14957164,0.00014043,2]
[357094268,1743725446095,-695.44042931,0.00014043,2]
[357094275,1743725624885,-870.840113,0.00013249,2]
[357094285,1743726257057,-352.040268,0.00013043,2]
[357094290,1743726450142,-896.97339,0.00013699,2]
[357094291,1743726450166,-300.0,0.0001404,2]
[357094292,1743726450189,-500.0,0.00014041,2]
[357094293,1743726450213,-500.0,0.00014041,2]
[357094294,1743726450239,-559.69,0.00014041,2]
[357094295,1743726450262,-577.88,0.00014041,2]
[357094296,1743726450285,-14.45339222,0.00014041,2]
[357094303,1743726571081,-322.5402342,0.00013941,2]
[357094326,1743726632239,-553.8,0.0001404,2]
[357094327,1743726632248,-500.0,0.0001404,2]
[357094328,1743726632258,-500.0,0.0001404,2]
[357094329,1743726632268,-500.0,0.0001404,2]
[357094330,1743726632278,-544.41,0.00014041,2]
[357094331,1743726632288,-500.0,0.00014041,2]
[357094332,1743726632298,-500.0,0.00014041,2]
[357094333,1743726632307,-500.0,0.00014041,2]
[357094334,1743726632317,-724.26,0.00014041,2]
[357094335,1743726632327,-500.0,0.00014041,2]
[357094336,1743726632336,-500.0,0.00014041,2]
[357094337,1743726632345,-220.83,0.00014041,2]
[357094338,1743726632355,-816.88,0.00014041,2]
[357094339,1743726632364,-500.0,0.00014041,2]
[357094340,1743726632374,-762.72,0.00014041,2]
[357094341,1743726632384,-500.0,0.00014041,2]
[357094342,1743726632394,-500.0,0.00014041,2]
[357094343,1743726632403,-457.42221645,0.00014041,2]
[357094344,1743726632412,-500.0,0.00014041,2]
[357094345,1743726632422,-500.0,0.00014041,2]
[357094346,1743726632431,-536.37,0.00014041,2]
[357094347,1743726632441,-500.0,0.00014041,2]
[357094348,1743726632453,-500.0,0.00014041,2]
[357094349,1743726632464,-500.0,0.00014041,2]
[357094351,1743726632473,-500.0,0.00014041,2]
[357094352,1743726632483,-490.09,0.00014041,2]
[357094354,1743726632495,-623.6,0.00014041,2]
[357094355,1743726632505,-22863.0,0.00014041,2]
[357094356,1743726632514,-43375.53879993,0.00014041,2]
[357094357,1743726632523,-507.43002939,0.00014042,2]
[357094358,1743726632533,-500.0,0.00014042,2]